bitfinex/quotes_SOLUSD_20240705
["timestamp","ask_amount","ask_price","bid_price","bid_amount"]
[1720146578353,30.4843,126.24,126.03,47.56]
[1720146578354,100.0,126.22,126.03,47.56]
[1720146578553,100.0,126.2,126.1,19.8243]
[1720146578748,7.9247,126.19,126.1,27.7539]
[1720146578943,100.0,126.18,126.07,19.8299]
[1720146579147,100.0,126.18,126.02,50.13]
[1720146579148,100.0,126.14,126.04,19.8346]
[1720146579440,7.9283,126.13,126.04,27.768]
[1720146579634,100.0,126.19,126.02,39.6753]
[1720146579855,100.0,126.19,126.12,7.9284]
[1720146580174,100.0,126.19,126.11,27.7525]
[1720146580347,100.0,126.19,126.09,7.9305]
[1720146580552,100.0,126.17,126.09,7.9305]
[1720146581355,100.0,126.19,126.1,19.8242]
[1720146581558,65.6143,126.24,126.09,7.9307]
[1720146581559,100.0,126.17,126.09,7.9307]
[1720146581761,7.9252,126.18,126.09,7.9307]
[1720146581982,100.0,126.19,126.09,19.8261]
[1720146582475,100.0,126.15,126.05,19.8318]
[1720146582651,100.0,126.19,126.02,87.2353]
[1720146583056,100.0,126.19,126.11,7.929]
[1720146583373,100.0,126.17,126.09,19.8261]
[1720146583604,7.9265,126.16,126.07,7.9319]
[1720146584087,100.0,126.17,126.07,7.9319]
[1720146584252,7.9277,126.14,126.06,19.831]
[1720146584457,100.0,126.15,126.06,19.831]
[1720146584656,15.0,126.21,126.06,27.7631]
[1720146584657,100.0,126.14,126.06,27.7631]
[1720146584869,107.9265,126.16,126.07,7.932]
[1720146585052,7.9265,126.16,126.08,7.9314]
[1720146585268,7.9259,126.17,126.08,7.9314]
[1720146585471,100.0,126.18,126.09,19.826]
[1720146585791,100.0,126.16,126.09,19.826]
[1720146586081,100.0,126.16,126.02,39.6753]
[1720146586082,107.9236,126.21,126.11,19.8231]
[1720146586375,100.0,126.19,126.11,19.8231]
[1720146586580,100.0,126.19,126.11,27.7526]
[1720146586778,100.0,126.19,126.12,7.9288]
[1720146587358,100.0,126.19,126.13,7.9281]
[1720146587690,100.0,126.19,126.11,19.8231]
[1720146587691,100.0,126.19,126.12,7.9288]
[1720146587884,100.0,126.17,126.07,14.2402]
[1720146588183,100.0,126.19,126.07,6.3083]
[1720146588386,100.0,126.2,126.11,7.9295]
[1720146588600,100.0,126.16,126.07,6.3083]
[1720146588961,100.0,126.16,126.08,7.9313]
[1720146590058,19.8286,126.21,126.15,7.9268]
[1720146590264,15.4843,126.24,126.17,7.9252]
[1720146590567,100.0,126.23,126.15,27.743]
[1720146590771,100.0,126.23,126.16,7.9264]
[1720146591581,100.0,126.23,126.15,27.743]
[1720146591784,100.0,126.26,126.18,7.925]
[1720146592102,100.0,126.26,126.19,7.9243]
[1720146592261,100.0,126.26,126.18,7.925]
[1720146592886,7.9221,126.23,126.14,19.8188]
[1720146593191,7.9207,126.25,126.17,7.9256]
[1720146593390,107.9219,126.24,126.16,19.8153]
[1720146594063,107.9219,126.24,126.16,27.7416]
[1720146594265,100.0,126.24,126.16,27.7416]
[1720146594585,100.0,126.26,126.16,19.8153]
[1720146594772,100.0,126.24,126.16,27.7416]
[1720146595178,7.9222,126.23,126.14,7.9274]
[1720146595406,100.0,126.24,126.1,15.1087]
[1720146595407,100.0,126.21,126.1,15.1087]
[1720146595566,100.0,126.25,126.15,39.6348]
[1720146595767,100.0,126.25,126.1,62.6687]
[1720146596066,7.922,126.24,126.15,7.9269]
[1720146596264,107.9222,126.23,126.14,19.8185]
[1720146596468,100.0,126.26,126.15,7.9266]
[1720146596679,100.0,126.26,126.17,19.8141]
[1720146596885,107.9202,126.26,126.17,27.7393]
[1720146597089,107.9202,126.26,126.12,47.56]
[1720146597090,7.9209,126.25,126.16,7.9258]
[1720146597596,7.9209,126.25,126.12,47.56]
[1720146597597,100.0,126.25,126.12,47.56]
[1720146597800,107.9209,126.25,126.16,7.9263]
[1720146598007,107.9209,126.25,126.1,15.1087]
[1720146598008,100.0,126.21,126.1,15.1087]
[1720146598202,7.9246,126.19,126.06,50.13]
[1720146598499,7.9257,126.18,126.09,19.8262]
[1720146598690,7.9247,126.19,126.1,7.93]
[1720146598886,107.9234,126.21,126.12,7.9286]
[1720146599271,107.9259,126.17,126.08,19.8281]
[1720146599478,7.9264,126.16,126.08,19.8281]
[1720146600013,100.0,126.15,126.04,19.8334]
[1720146600176,100.0,126.18,126.09,19.8263]
[1720146600379,16.636,126.19,126.12,7.9283]
[1720146600583,100.0,126.17,126.02,93.728]
[1720146600888,107.9278,126.14,126.05,19.8329]
[1720146601077,100.0,126.12,126.01,0.1]
[1720146601279,7.9314,126.08,126.01,0.1]
[1720146601486,7.9309,126.09,126.01,0.1]
[1720146601690,100.0,126.1,126.01,0.1]
[1720146601994,7.9316,126.08,126.01,0.1]
[1720146602199,107.9302,126.1,126.01,8.0357]
[1720146602602,100.0,126.14,126.01,19.9388]
[1720146602905,100.0,126.14,126.06,7.9324]
[1720146603074,100.0,126.14,126.01,0.1]
[1720146603075,106.6575,126.18,126.01,0.1]
[1720146603274,106.6575,126.18,126.07,19.8289]
[1720146603481,100.0,126.16,126.04,0.17]
[1720146603681,100.0,126.16,126.04,19.8342]
[1720146603883,7.9275,126.15,126.06,7.9326]
[1720146604107,100.0,126.13,126.01,19.9393]
[1720146604320,100.0,126.16,126.01,19.9393]
[1720146604321,7.9309,126.09,126.01,19.9393]
[1720146604603,100.0,126.11,126.01,19.9393]
[1720146604604,7.9333,126.05,126.01,0.1]
[1720146604775,100.0,126.06,126.01,0.1]
[1720146604776,107.9328,126.06,126.01,0.1]
[1720146605087,100.0,126.04,126.01,0.1]
[1720146605409,100.0,126.06,126.01,0.1]
[1720146605617,7.9334,126.05,126.01,0.1]
[1720146605898,107.9332,126.06,126.01,0.1]
[1720146606120,116.5252,126.09,126.01,0.1]
[1720146606311,100.0,126.11,126.03,7.9345]
[1720146606477,100.0,126.11,126.05,7.9333]
[1720146606686,100.0,126.11,126.03,7.934]
[1720146606880,6.4148,126.13,126.04,19.8336]
[1720146607093,100.0,126.16,126.04,19.8336]
[1720146607506,100.0,126.14,126.04,19.8336]
[1720146607680,100.0,126.14,126.07,7.932]
[1720146607881,100.0,126.14,126.06,7.9326]
[1720146608182,100.0,126.14,126.04,19.8336]
[1720146608383,7.9308,126.1,126.01,27.8747]
[1720146608603,100.0,126.12,126.01,0.1]
[1720146608781,7.9309,126.09,126.01,8.0358]
[1720146609110,107.9279,126.14,126.01,0.1]
[1720146609404,100.0,126.16,126.08,7.9309]
[1720146609586,100.0,126.16,126.08,27.7585]
[1720146609918,100.0,126.16,126.08,7.9314]
[1720146610090,100.0,126.16,126.09,7.9307]
[1720146610293,6.6124,126.18,126.02,93.47]
[1720146610294,6.6124,126.18,126.1,7.93]
[1720146610618,115.2165,126.19,126.1,7.93]
[1720146610619,123.141,126.19,126.1,7.93]
[1720146610822,7.9264,126.16,126.02,93.47]
[1720146610994,7.9282,126.14,126.06,19.8311]
[1720146611705,100.0,126.17,126.08,19.8278]
[1720146612021,115.2165,126.19,126.08,19.8278]
[1720146612192,100.0,126.17,126.08,19.8278]
[1720146612589,115.2165,126.19,126.08,19.8278]
[1720146612815,100.0,126.17,126.08,27.7587]
[1720146612985,7.9269,126.16,126.08,27.7592]
[1720146613187,107.9259,126.17,126.08,27.7592]
[1720146613411,100.0,126.17,126.09,7.9307]
[1720146614007,107.9258,126.17,126.09,7.9307]
[1720146614197,107.9258,126.17,126.03,0.17]
[1720146614198,100.0,126.14,126.05,19.833]
[1720146614399,7.9276,126.15,126.06,7.9327]
[1720146614606,100.0,126.16,126.05,19.833]
[1720146614822,100.0,126.18,126.07,19.829]
[1720146614991,107.9252,126.18,126.07,19.829]
[1720146615192,107.9252,126.18,126.08,7.9314]
[1720146615193,7.9261,126.17,126.08,7.9314]
[1720146615390,107.9253,126.18,126.09,7.9307]
[1720146615588,100.0,126.18,126.09,19.8263]
[1720146615923,100.0,126.17,126.02,53.7939]
[1720146616226,100.0,126.19,126.08,19.8279]
[1720146616390,7.9265,126.16,126.08,19.8279]
[1720146616706,100.0,126.19,126.08,19.8279]
[1720146616906,165.3803,126.24,126.02,6.2339]
[1720146616907,15.2503,126.24,126.17,7.9256]
[1720146617115,6.3519,126.28,126.18,7.9251]
[1720146617331,16.1209,126.29,126.21,7.9228]
[1720146617488,7.917,126.31,126.22,7.9225]
[1720146617690,100.0,126.3,126.17,19.8139]
[1720146618495,100.0,126.34,126.27,7.9193]
[1720146618698,100.0,126.34,126.26,27.7194]
[1720146618902,7.9145,126.35,126.26,27.7194]
[1720146619104,6.4519,126.39,126.28,19.7958]
[1720146619316,6.4519,126.39,126.3,7.917]
[1720146619317,0.1,126.39,126.3,7.917]
[1720146619525,0.1,126.39,126.32,7.9163]
[1720146620016,100.1,126.39,126.27,87.3263]
[1720146620186,108.0122,126.39,126.3,19.7941]
[1720146620620,0.1,126.39,126.31,7.9169]
[1720146621154,100.1,126.39,126.31,7.9169]
[1720146621292,100.1,126.39,126.28,7.9187]
[1720146621488,100.1,126.39,126.29,7.918]
[1720146621489,108.0126,126.39,126.29,7.918]
[1720146621722,108.0126,126.39,126.28,19.796]
[1720146622127,100.1,126.39,126.28,19.796]
[1720146622426,108.012,126.39,126.29,7.918]
[1720146622604,108.012,126.39,126.3,7.9175]
[1720146622793,100.1,126.39,126.28,19.796]
[1720146622998,108.012,126.39,126.29,7.9176]
[1720146623207,108.012,126.39,126.3,7.9174]
[1720146623420,8.0122,126.39,126.29,7.9178]
[1720146623721,108.0122,126.39,126.29,19.7953]
[1720146623933,100.0,126.35,126.23,89.7397]
[1720146624092,100.1,126.39,126.23,89.7397]
[1720146624093,107.9138,126.37,126.28,7.9185]
[1720146624292,107.9138,126.37,126.27,7.9194]
[1720146624491,100.0,126.35,126.26,19.8001]
[1720146624708,107.9138,126.37,126.23,39.6097]
[1720146624941,100.0,126.37,126.27,27.7167]
[1720146625136,107.9147,126.35,126.24,19.803]
[1720146625301,107.9147,126.35,126.26,7.92]
[1720146625615,107.9145,126.35,126.26,7.92]
[1720146625805,100.0,126.37,126.26,19.7995]
[1720146626219,107.9135,126.37,126.27,7.9189]
[1720146626404,107.9145,126.35,126.26,27.7195]
[1720146626627,7.9127,126.38,126.26,19.7995]
[1720146626927,100.1,126.39,126.28,19.7964]
[1720146627100,7.9126,126.38,126.29,7.918]
[1720146627299,100.1,126.39,126.28,19.7964]
[1720146627520,0.1,126.39,126.28,19.7964]
[1720146627718,0.1,126.39,126.31,7.9169]
[1720146628408,7.9128,126.38,126.29,7.9182]
[1720146629028,0.1,126.39,126.31,7.9169]
[1720146629213,0.1,126.39,126.28,6.4021]
[1720146629405,0.1,126.39,126.36,19.7837]
[1720146629605,0.1,126.39,126.33,7.9151]
[1720146630111,0.1,126.39,126.34,7.915]
[1720146630420,0.1,126.39,126.29,47.79]
[1720146630421,0.1,126.39,126.37,7.9132]
[1720146630729,0.1,126.39,126.38,7.9126]
[1720146632728,0.8248227,126.41,126.4,27.6897]
[1720146633112,0.1,126.49,126.46,7.9075]
[1720146633817,0.1,126.49,126.45,27.6784]
[1720146635813,0.1,126.49,126.48,27.6722]
[1720146636018,0.1,126.49,126.48,19.7659]
[1720146636208,0.1,126.49,126.47,7.9064]
[1720146636426,0.1,126.49,126.45,19.7699]
[1720146636638,0.1,126.49,126.48,7.9063]
[1720146636946,0.8248227,126.54,126.52,7.9034]
[1720146637148,0.8248227,126.54,126.51,19.76]
[1720146637149,0.8248227,126.54,126.53,7.9032]
[1720146638024,0.1,126.59,126.58,7.9001]
[1720146639212,0.1,126.59,126.58,8.0701]
[1720146639412,0.1,126.59,126.58,7.9001]
[1720146640133,0.1,126.59,126.58,55.5201]
[1720146640355,0.1,126.59,126.58,55.6901]
[1720146640560,0.8248227,126.67,126.61,19.745]
[1720146640751,0.8248227,126.67,126.66,7.8951]
[1720146640955,0.8248227,126.67,126.66,47.3708]
[1720146641127,0.8248227,126.67,126.66,94.9908]
[1720146641437,0.1,126.69,126.68,27.6286]
[1720146641639,0.1,126.69,126.68,75.4186]
[1720146642331,0.04693919,126.74,126.73,7.8907]
[1720146642848,0.04693919,126.74,126.73,8.0607]
[1720146643250,0.9248227,126.79,126.77,7.8883]
[1720146643563,0.9248227,126.79,126.77,105.8083]
[1720146643779,0.1,126.89,126.88,7.8814]
[1720146644749,0.1,126.89,126.88,8.0514]
[1720146644953,0.272186,126.89,126.88,7.8814]
[1720146645156,0.272186,126.89,126.88,8.0514]
[1720146645365,0.272186,126.89,126.8,39.4305]
[1720146645366,0.272186,126.89,126.81,50.13]
[1720146645524,0.272186,126.89,126.82,20.17]
[1720146645724,0.272186,126.89,126.86,19.7053]
[1720146645970,7.8816,126.88,126.77,19.7198]
[1720146646261,0.272186,126.89,126.83,19.71]
[1720146646426,0.272186,126.89,126.76,50.13]
[1720146646427,0.272186,126.89,126.8,39.4321]
[1720146646635,0.272186,126.89,126.88,7.8814]
[1720146647056,0.272186,126.89,126.86,19.7052]
[1720146647238,0.272186,126.89,126.87,7.8819]
[1720146647440,0.272186,126.89,126.88,7.8814]
[1720146647657,0.272186,126.89,126.88,8.0514]
[1720146647866,0.272186,126.89,126.88,55.6714]
[1720146648034,0.1,126.99,126.94,7.8772]
[1720146648257,0.1,126.99,126.91,7.8794]
[1720146648649,0.1,126.99,126.92,19.6969]
[1720146648847,0.1,126.99,126.93,0.17]
[1720146649359,0.1,126.99,126.91,19.6977]
[1720146649537,0.1,126.99,126.93,7.8777]
[1720146649746,0.1,126.99,126.97,7.8756]
[1720146649938,0.1,126.99,126.98,7.8752]
[1720146650266,0.1,126.99,126.98,55.6652]
[1720146650468,0.9932161,127.01,127.0,75.179]
[1720146650638,0.9932161,127.01,127.0,75.349]
[1720146651034,0.1,127.09,127.0,47.79]
[1720146651264,0.1,127.09,127.08,7.869]
[1720146651572,0.1,127.09,127.08,55.489]
[1720146651731,0.04679818,127.12,127.07,7.8691]
[1720146651937,0.04679818,127.12,127.03,7.8718]
[1720146652161,0.04679818,127.12,127.06,67.2951]
[1720146652371,0.04679818,127.12,127.11,7.8672]
[1720146652734,0.04679818,127.12,127.05,19.6765]
[1720146653136,0.04679818,127.12,127.01,19.6822]
[1720146653435,0.04679818,127.12,126.96,49.62]
[1720146653436,100.0,127.1,126.96,49.62]
[1720146653632,100.0,127.1,126.91,12.85070461]
[1720146653633,0.04679818,127.12,127.02,7.8726]
[1720146653836,0.04679818,127.12,126.99,47.62]
[1720146654259,0.04679818,127.12,127.01,19.6824]
[1720146654572,0.04679818,127.12,126.98,88.9948]
[1720146654741,0.04679818,127.12,127.04,7.8713]
[1720146654939,0.04679818,127.12,127.05,7.8705]
[1720146655146,0.04679818,127.12,127.06,19.6752]
[1720146655641,0.04679818,127.12,127.01,49.62]
[1720146655642,0.04679818,127.12,127.09,19.6702]
[1720146655835,0.04679818,127.12,127.09,67.2902]
[1720146656036,0.04679818,127.12,127.11,7.8672]
[1720146656468,0.04679818,127.12,127.11,8.0372]
[1720146656840,0.04679818,127.12,127.11,55.6572]
[1720146657045,0.9932161,127.16,127.15,27.5265]
[1720146657249,0.1,127.29,127.18,55.4828]
[1720146657458,0.1,127.29,127.18,75.6528]
[1720146657865,0.1,127.29,127.25,7.8584]
[1720146658044,0.1,127.29,127.26,19.6445]
[1720146658455,0.1,127.29,127.27,7.8572]
[1720146658692,0.1,127.29,127.26,19.6445]
[1720146658693,0.1,127.29,127.26,67.2645]
[1720146658859,0.1,127.29,127.28,7.8566]
[1720146659248,0.9932161,127.31,127.3,75.114]
[1720146659459,0.1,127.39,127.38,55.4705]
[1720146659673,0.9932161,127.47,127.46,7.8455]
[1720146659993,0.9932161,127.47,127.32,49.62]
[1720146659994,0.9932161,127.47,127.35,13.18576373]
[1720146660275,0.9932161,127.47,127.45,7.846]
[1720146660464,0.9932161,127.47,127.4,7.8488]
[1720146660671,100.9932161,127.47,127.35,19.6302]
[1720146660973,7.8463,127.45,127.35,19.6302]
[1720146661180,100.0,127.46,127.35,27.4825]
[1720146661382,7.8463,127.45,127.35,27.4823]
[1720146661586,100.0,127.46,127.35,19.6302]
[1720146661745,100.0,127.44,127.31,19.6367]
[1720146661952,7.85,127.39,127.28,7.8561]
[1720146662174,49.62,127.44,127.17,6.6594]
[1720146662342,100.0,127.43,127.33,19.6331]
[1720146662552,7.8493,127.4,127.29,19.6391]
[1720146662778,100.0,127.39,127.29,19.6391]
[1720146662980,100.0,127.39,127.21,1.81845217]
[1720146662981,100.0,127.4,127.23,39.2965]
[1720146663197,7.8528,127.35,127.24,75.1259]
[1720146663376,30.8877,127.41,127.3,7.855]
[1720146663693,100.0,127.4,127.24,49.62]
[1720146663854,7.8513,127.37,127.27,7.8573]
[1720146664060,100.0,127.4,127.26,67.2641]
[1720146664392,100.0,127.4,127.22,27.5101]
[1720146664393,7.8543,127.32,127.22,27.5101]
[1720146664574,19.6292,127.37,127.22,19.65]
[1720146664768,100.0,127.4,127.25,19.6456]
[1720146665089,0.1,127.49,127.29,47.62]
[1720146665090,123.0385,127.48,127.29,47.62]
[1720146665261,100.0,127.45,127.29,47.62]
[1720146665463,100.0,127.43,127.24,49.62]
[1720146665687,42.6499,127.48,127.32,47.62]
[1720146665888,7.8469,127.44,127.32,47.62]
[1720146666096,7.8461,127.46,127.34,67.2519]
[1720146666388,23.0385,127.48,127.38,7.8504]
[1720146666389,30.8833,127.48,127.38,7.8504]
[1720146666695,30.8834,127.48,127.37,67.2471]
[1720146666855,0.1,127.49,127.42,7.8474]
[1720146667061,0.1,127.49,127.38,0.17]
[1720146667390,100.0,127.48,127.38,0.17]
[1720146667570,100.0,127.46,127.36,19.6278]
[1720146667771,100.0,127.46,127.31,49.62]
[1720146667772,0.1,127.49,127.37,0.17]
[1720146667961,0.1,127.49,127.35,49.62]
[1720146667962,0.1,127.49,127.46,7.8451]
[1720146668278,0.1,127.49,127.4,19.6226]
[1720146668485,0.1,127.49,127.41,7.848]
[1720146668699,0.1,127.49,127.4,27.4715]
[1720146668878,100.0,127.48,127.36,39.6281]
[1720146669080,7.8458,127.46,127.37,7.8505]
[1720146669282,7.8464,127.45,127.36,19.6281]
[1720146669596,7.8468,127.45,127.32,19.634]
[1720146669894,0.1,127.49,127.38,7.8499]
[1720146670099,7.8445,127.48,127.39,7.8497]
[1720146670308,0.1,127.49,127.42,19.619]
[1720146670603,0.1,127.49,127.45,19.6151]
[1720146670973,0.1,127.49,127.35,15.0]
[1720146671204,0.1,127.49,127.45,19.6155]
[1720146671383,0.1,127.49,127.46,7.845]
[1720146671695,0.1,127.49,127.42,47.62]
[1720146671898,0.1,127.49,127.45,7.8457]
[1720146672202,0.1,127.49,127.42,7.8474]
[1720146672380,0.1,127.49,127.39,47.62]
[1720146672574,0.1,127.49,127.36,7.8512]
[1720146672776,0.1,127.49,127.31,39.274]
[1720146673111,7.9437,127.49,127.36,49.62]
[1720146673399,7.9437,127.49,127.29,15.0]
[1720146673400,0.17,127.48,127.34,47.62]
[1720146673583,0.17,127.48,127.3,39.2755]
[1720146673775,7.8481,127.42,127.32,7.8536]
[1720146673979,119.7823,127.48,127.31,19.6358]
[1720146673980,100.0,127.44,127.31,19.6358]
[1720146674202,100.0,127.44,127.33,7.8535]
[1720146674388,7.8498,127.4,127.31,19.6358]
[1720146674593,100.17,127.43,127.31,19.6358]
[1720146674782,19.6161,127.45,127.31,19.6358]
[1720146674783,0.1,127.49,127.39,7.8498]
[1720146675088,100.0,127.48,127.33,47.62]
[1720146675291,0.1,127.49,127.39,19.6247]
[1720146675588,0.1,127.49,127.42,27.4676]
[1720146675779,0.1,127.49,127.42,47.62]
[1720146675979,0.1,127.49,127.48,75.0752]
[1720146676282,0.1,127.49,127.48,27.6252]
[1720146676471,0.1,127.49,127.44,19.6156]
[1720146676673,0.1,127.49,127.4,49.62]
[1720146677183,0.1,127.49,127.45,7.846]
[1720146677402,0.1,127.49,127.48,7.8443]
[1720146677607,0.1,127.49,127.48,55.4643]
[1720146678103,0.046658,127.5,127.49,75.073]
[1720146678304,0.1,127.59,127.49,67.79]
[1720146678472,0.1,127.59,127.58,7.8382]
[1720146678677,0.1,127.59,127.58,27.4337]
[1720146678975,0.1,127.59,127.58,75.0537]
[1720146679303,0.1,127.59,127.58,75.2237]
[1720146679873,1.2430436,127.61,127.58,67.3855]
[1720146680077,1.2430436,127.61,127.6,94.6418]
[1720146680388,1.2430436,127.61,127.6,94.8118]
[1720146680701,0.1,127.69,127.63,7.8345]
[1720146680879,0.1,127.69,127.62,47.62]
[1720146681079,0.1,127.69,127.6,0.17]
[1720146681575,0.1,127.69,127.59,19.7629]
[1720146681895,0.1,127.69,127.58,67.2144]
[1720146682077,0.1,127.69,127.5,101.05431608]
[1720146682078,7.8365,127.61,127.52,7.8417]
[1720146682287,7.8365,127.61,127.5,21.42091608]
[1720146682288,19.5822,127.67,127.5,21.42091608]
[1720146682594,119.5822,127.67,127.53,19.6029]
[1720146682777,19.5822,127.67,127.53,19.6029]
[1720146683102,100.0,127.68,127.5,1.81431608]
[1720146683103,7.8396,127.56,127.5,1.81431608]
[1720146683305,16.2741,127.64,127.5,1.81431608]
[1720146683488,100.0,127.61,127.5,1.81431608]
[1720146683692,100.0,127.59,127.5,1.81431608]
[1720146683984,7.8397,127.56,127.5,1.81431608]
[1720146684197,7.8415,127.53,127.5,1.81431608]
[1720146684402,100.0,127.62,127.5,1.81431608]
[1720146684889,35.8613,127.64,127.51,55.4623]
[1720146685083,7.8346,127.64,127.55,7.84]
[1720146685294,0.1,127.69,127.56,47.62]
[1720146685623,7.834,127.65,127.56,55.4588]
[1720146685905,100.0,127.66,127.53,47.62]
[1720146686217,100.0,127.66,127.5,19.6063]
[1720146686218,19.5848,127.65,127.5,19.6063]
[1720146686385,19.5834,127.66,127.45,15.0]
[1720146686592,7.8344,127.65,127.56,7.8391]
[1720146686891,100.1,127.69,127.57,19.597]
[1720146687100,119.5825,127.67,127.54,47.62]
[1720146687296,119.5825,127.67,127.49,49.62]
[1720146687297,7.8339,127.65,127.56,55.4594]
[1720146687506,0.1,127.69,127.58,47.62]
[1720146687714,0.1,127.69,127.6,47.62]
[1720146688006,0.1,127.69,127.53,49.62]
[1720146688007,0.1,127.69,127.65,7.8335]
[1720146688216,0.1,127.69,127.62,47.62]
[1720146688387,0.1,127.69,127.64,7.8345]
[1720146688592,0.1,127.69,127.57,49.62]
[1720146688889,0.1,127.69,127.67,7.8325]
[1720146689207,0.1,127.69,127.66,27.4147]
[1720146689419,0.1,127.69,127.66,19.582]
[1720146689615,0.1,127.69,127.65,7.8339]
[1720146689616,0.1,127.69,127.58,0.17]
[1720146689923,0.1,127.69,127.58,15.0]
[1720146690082,0.1,127.69,127.62,19.5878]
[1720146690283,0.1,127.69,127.61,7.8363]
[1720146691318,0.1,127.69,127.59,19.5937]
[1720146691319,100.1,127.69,127.53,6.1226]
[1720146691486,0.1,127.69,127.57,47.62]
[1720146691815,0.17,127.68,127.53,6.1226]
[1720146692107,0.1,127.69,127.61,7.8361]
[1720146692312,0.1,127.69,127.59,49.62]
[1720146692608,0.1,127.69,127.66,19.5817]
[1720146692782,0.1,127.69,127.63,19.5875]
[1720146692982,7.932,127.69,127.59,7.8375]
[1720146693209,0.1,127.69,127.6,0.17]
[1720146693591,0.1,127.69,127.62,47.62]
[1720146693786,0.1,127.69,127.63,7.835]
[1720146693985,0.1,127.69,127.63,19.5867]
[1720146694184,0.1,127.69,127.66,7.8332]
[1720146694506,0.1,127.69,127.64,0.17]
[1720146694507,0.1,127.69,127.68,27.4122]
[1720146694803,0.1,127.69,127.68,27.5822]
[1720146695191,0.1,127.79,127.73,19.5711]
[1720146695415,0.1,127.79,127.74,7.8282]
[1720146695600,0.1,127.79,127.73,19.5711]
[1720146695910,0.1,127.79,127.72,7.8295]
[1720146696117,0.1,127.79,127.71,7.8301]
[1720146696286,7.8259,127.78,127.69,27.4082]
[1720146696493,0.1,127.79,127.71,7.83]
[1720146696799,7.8289,127.74,127.65,7.8339]
[1720146697112,7.8289,127.74,127.65,27.4173]
[1720146697292,19.5665,127.77,127.62,49.62]
[1720146697614,7.8301,127.72,127.63,55.4548]
[1720146697912,0.17,127.73,127.58,6.0517]
[1720146698119,200.0,127.76,127.58,6.0517]
[1720146698293,7.8303,127.71,127.61,19.5898]
[1720146698613,7.8303,127.71,127.58,6.0517]
[1720146698614,0.17,127.75,127.64,7.8339]
[1720146698819,7.8297,127.72,127.64,47.62]
[1720146699108,7.8297,127.72,127.62,19.5892]
[1720146699109,7.8307,127.71,127.62,19.5892]
[1720146699315,7.8302,127.71,127.62,27.4247]
[1720146699501,7.8296,127.72,127.63,7.835]
[1720146699695,7.8332,127.67,127.58,27.4319]
[1720146699900,22.8689,127.74,127.57,49.62]
[1720146700203,7.8303,127.71,127.62,19.5882]
[1720146700396,100.0,127.72,127.58,19.5941]
[1720146700724,100.0,127.7,127.55,67.2199]
[1720146700921,7.8332,127.67,127.57,7.8382]
[1720146701222,7.8332,127.67,127.56,7.8393]
[1720146701223,7.8338,127.66,127.56,7.8393]
[1720146701386,0.17,127.69,127.52,19.6044]